fUST/lending_fUST_20240902
["ID","MTS","AMOUNT","RATE_DAILY","PERIOD"]
[336889851,1725234645629,-500.0,0.00024657,2]
[336889852,1725234645639,-1792.11,0.00024657,2]
[336889853,1725234645648,-500.0,0.00024657,2]
[336889854,1725234645658,-2061.81,0.00024657,2]
[336889855,1725234645668,-622.66,0.00024657,2]
[336889856,1725234645678,-500.0,0.00024657,2]
[336889857,1725234645689,-1574.91,0.00024657,2]
[336889858,1725234645700,-506.790149,0.00024657,2]
[336889859,1725234645712,-500.0,0.00024657,2]
[336889860,1725234645724,-500.0,0.00024657,2]
[336889861,1725234645735,-679.8,0.00024657,2]
[336889862,1725234645746,-500.0,0.00024657,2]
[336889863,1725234645757,-500.0,0.00024657,2]
[336889864,1725234645767,-600.9,0.00024657,2]
[336889865,1725234645776,-500.0,0.00024657,2]
[336889866,1725234645786,-500.0,0.00024657,2]
[336889867,1725234645795,-500.0,0.00024657,2]
[336889868,1725234645806,-500.0,0.00024657,2]
[336889870,1725234645815,-2339.41,0.00024657,2]
[336889872,1725234645825,-500.0,0.00024657,2]
[336889873,1725234645840,-500.0,0.00024657,2]
[336889874,1725234645851,-581.06,0.00024657,2]
[336889875,1725234645861,-500.0,0.00024657,2]
[336889876,1725234645871,-500.0,0.00024657,2]
[336889877,1725234645881,-235.96967371,0.00024657,2]
[336889878,1725234645892,-500.0,0.00024657,2]
[336889879,1725234645902,-500.0,0.00024657,2]
[336889880,1725234645912,-636.01,0.00024657,2]
[336889881,1725234645924,-500.0,0.00024657,2]
[336889882,1725234645934,-500.0,0.00024657,2]
[336889883,1725234645947,-500.0,0.00024657,2]
[336889884,1725234645960,-2884.56,0.00024657,2]
[336889885,1725234645972,-511.09599293,0.00024657,2]
[336889886,1725234645983,-500.0,0.00024657,2]
[336889887,1725234645994,-500.0,0.00024657,2]
[336889888,1725234646004,-500.0,0.00024657,2]
[336889889,1725234646015,-500.0,0.00024657,2]
[336889890,1725234646026,-500.0,0.00024657,2]
[336889891,1725234646037,-500.0,0.00024657,2]
[336889892,1725234646046,-500.0,0.00024657,2]
[336889893,1725234646057,-642.51149288,0.00024657,2]
[336889894,1725234646067,-500.0,0.00024657,2]
[336889895,1725234646077,-529.72,0.00024657,2]
[336889896,1725234646087,-14211.36,0.00024657,2]
[336889897,1725234646098,-500.0,0.00024657,2]
[336889898,1725234646109,-500.0,0.00024657,2]
[336889899,1725234646121,-500.0,0.00024657,2]
[336889900,1725234646133,-500.0,0.00024657,2]
[336889901,1725234646142,-1368.92,0.00024657,2]
[336889902,1725234646151,-3440.28,0.00024657,2]
[336889903,1725234646161,-1823.39,0.00024657,2]
[336889904,1725234646174,-500.0,0.00024657,2]
[336889905,1725234646183,-672.02,0.00024657,2]
[336889906,1725234646194,-500.0,0.00024657,2]
[336889907,1725234646207,-1948.94,0.00024657,2]
[336889908,1725234646216,-500.0,0.00024657,2]
[336889909,1725234646226,-537.43010146,0.00024657,2]
[336889910,1725234646236,-500.0,0.00024657,2]
[336889911,1725234646246,-500.0,0.00024657,2]
[336889912,1725234646256,-799.02,0.00024657,2]
[336889913,1725234646445,-500.0,0.00024657,2]
[336889914,1725234646456,-500.0,0.00024657,2]
[336889915,1725234646466,-500.0,0.00024657,2]
[336889916,1725234646476,-1006.98269716,0.00024657,2]
[336889917,1725234646486,-500.0,0.00024657,2]
[336889918,1725234646495,-500.0,0.00024657,2]
[336889919,1725234646506,-504.44866529,0.00024657,2]
[336889920,1725234646516,-610.36482158,0.00024657,2]
[336889921,1725234646526,-500.0,0.00024657,2]
[336889922,1725234646536,-500.0,0.00024657,2]
[336889923,1725234646545,-500.0,0.00024657,2]
[336889924,1725234646555,-528.95,0.00024657,2]
[336889925,1725234646564,-500.0,0.00024657,2]
[336889926,1725234646573,-500.0,0.00024657,2]
[336889927,1725234646582,-500.0,0.00024657,2]
[336889928,1725234646592,-500.0,0.00024657,2]
[336889929,1725234646601,-500.0,0.00024657,2]
[336889930,1725234646610,-500.0,0.00024657,2]
[336889931,1725234646622,-334.64784238,0.00024657,2]
[336889932,1725234646875,-165.35215762,0.00024657,2]
[336889933,1725234646886,-500.0,0.00024657,2]
[336889934,1725234646897,-500.0,0.00024657,2]
[336889935,1725234646909,-694.52,0.00024657,2]
[336889936,1725234646919,-500.0,0.00024657,2]
[336889937,1725234646931,-500.0,0.00024657,2]
[336889938,1725234646942,-500.0,0.00024657,2]
[336889939,1725234646953,-2904.61,0.00024657,2]
[336889940,1725234646963,-500.0,0.00024657,2]
[336889941,1725234646973,-500.0,0.00024657,2]
[336889942,1725234646982,-500.0,0.00024657,2]
[336889943,1725234646991,-500.0,0.00024657,2]
[336889944,1725234647000,-2592.68,0.00024657,2]
[336889945,1725234647009,-500.0,0.00024657,2]
[336889946,1725234647018,-772.5,0.00024657,2]
[336889947,1725234647027,-500.0,0.00024657,2]
[336889948,1725234647036,-500.0,0.00024657,2]
[336889949,1725234647045,-653.34,0.00024657,2]
[336889950,1725234647054,-500.0,0.00024657,2]
[336889951,1725234647063,-500.0,0.00024657,2]
[336889952,1725234647072,-2384.61,0.00024657,2]
[336889953,1725234647082,-500.0,0.00024657,2]
[336889954,1725234647091,-500.0,0.00024657,2]
[336889955,1725234647100,-500.0,0.00024657,2]
[336889956,1725234647110,-500.0,0.00024657,2]
[336889957,1725234647119,-501.40880738,0.00024657,2]
[336889958,1725234647128,-805.1,0.00024657,2]
[336889959,1725234647137,-500.0,0.00024657,2]
[336889960,1725234647146,-500.0,0.00024657,2]
[336889961,1725234647155,-500.0,0.00024657,2]
[336889962,1725234647165,-500.0,0.00024657,2]
[336889963,1725234647174,-500.0,0.00024657,2]
[336889964,1725234647184,-500.0,0.00024657,2]
[336889965,1725234647194,-503.73279641,0.00024657,2]
[336889966,1725234647207,-500.0,0.00024657,2]
[336889967,1725234647216,-500.0,0.00024657,2]
[336889968,1725234647225,-500.0,0.00024657,2]
[336889969,1725234647234,-500.0,0.00024657,2]
[336889970,1725234647243,-500.0,0.00024657,2]
[336889971,1725234647252,-500.0,0.00024657,2]
[336889972,1725234647262,-500.0,0.00024657,2]
[336889973,1725234647271,-500.0,0.00024657,2]
[336889974,1725234647282,-500.0,0.00024657,2]
[336889975,1725234647292,-500.0,0.00024657,2]
[336889976,1725234647301,-796.33,0.00024657,2]
[336889977,1725234647310,-500.0,0.00024657,2]
[336889978,1725234647319,-541.851147,0.00024657,2]
[336889979,1725234647328,-500.0,0.00024657,2]
[336889980,1725234647337,-500.0,0.00024657,2]
[336889981,1725234647347,-500.0,0.00024657,2]
[336889982,1725234647356,-500.0,0.00024657,2]
[336889983,1725234647365,-500.0,0.00024657,2]
[336889984,1725234647375,-500.0,0.00024657,2]
[336889985,1725234647384,-208.9419651,0.00024657,2]
[336889986,1725234647394,-500.0,0.00024657,2]
[336889987,1725234647403,-1568.11,0.00024657,2]
[336889988,1725234647412,-1207.86,0.00024657,2]
[336889989,1725234647421,-506.44536455,0.00024657,2]
[336889990,1725234647430,-1621.62,0.00024657,2]
[336889991,1725234647440,-500.0,0.00024657,2]
[336889992,1725234647449,-500.0,0.00024657,2]
[336889993,1725234647459,-500.0,0.00024657,2]
[336889994,1725234647469,-500.0,0.00024657,2]
[336889995,1725234647478,-1686.38,0.00024657,2]
[336889996,1725234647488,-500.0,0.00024657,2]
[336889997,1725234647497,-1764.74,0.00024657,2]
[336889998,1725234647507,-1579.74,0.00024657,2]
[336889999,1725234647516,-1078.22,0.00024657,2]
[336890000,1725234647526,-1406.03,0.00024657,2]
[336890001,1725234647538,-1800.22,0.00024657,2]
[336890002,1725234647549,-500.0,0.00024657,2]
[336890003,1725234647560,-500.0,0.00024657,2]
[336890004,1725234647570,-500.0,0.00024657,2]
[336890005,1725234647579,-500.0,0.00024657,2]
[336890006,1725234647588,-500.0,0.00024657,2]
[336890007,1725234647598,-602.89,0.00024657,2]
[336890008,1725234647607,-500.0,0.00024657,2]
[336890009,1725234647618,-1193.98,0.00024657,2]
[336890010,1725234647627,-500.0,0.00024657,2]
[336890011,1725234647638,-2967.95,0.00024657,2]
[336890012,1725234647648,-500.0,0.00024657,2]
[336890013,1725234647657,-500.0,0.00024657,2]
[336890014,1725234647668,-500.0,0.00024657,2]
[336890015,1725234647677,-726.25,0.00024657,2]
[336890016,1725234647687,-192.6124918,0.00024657,2]
[336890017,1725234647697,-500.0,0.00024657,2]
[336890018,1725234647706,-500.0,0.00024657,2]
[336890019,1725234647715,-500.0,0.00024657,2]
[336890020,1725234647724,-500.0,0.00024657,2]
[336890021,1725234647734,-500.24314518,0.00024657,2]
[336890022,1725234647743,-517.56,0.00024657,2]
[336890023,1725234647752,-1970.09,0.00024657,2]
[336890024,1725234647761,-500.0,0.00024657,2]
[336890025,1725234647771,-501.51023586,0.00024657,2]
[336890026,1725234647780,-500.0,0.00024657,2]
[336890027,1725234647790,-872.55,0.00024657,2]
[336890028,1725234647799,-500.0,0.00024657,2]
[336890029,1725234647808,-652.84,0.00024657,2]
[336890030,1725234647817,-500.63026469,0.00024657,2]
[336890031,1725234647826,-500.0,0.00024657,2]
[336890032,1725234647835,-500.0,0.00024657,2]
[336890033,1725234647844,-500.0,0.00024657,2]
[336890034,1725234647853,-500.0,0.00024657,2]
[336890035,1725234647863,-468.42360655,0.00024657,2]
[336890036,1725234647873,-231.81405816,0.00024657,2]
[336890037,1725234647882,-500.0,0.00024657,2]
[336890038,1725234647893,-862.09,0.00024657,2]
[336890039,1725234647903,-500.0,0.00024657,2]
[336890040,1725234647913,-500.0,0.00024657,2]
[336890041,1725234647924,-1023.44,0.00024657,2]
[336890042,1725234647935,-500.0,0.00024657,2]
[336890043,1725234647946,-500.0,0.00024657,2]
[336890044,1725234647956,-8915.77,0.00024657,2]
[336890045,1725234647966,-504.79609857,0.00024657,2]
[336890046,1725234647975,-6234.13,0.00024657,2]
[336890047,1725234647984,-500.0,0.00024657,2]
[336890048,1725234647994,-500.0,0.00024657,2]
[336890049,1725234648003,-1240.79,0.00024657,2]
[336890050,1725234648013,-1255.86,0.00024657,2]
[336890051,1725234648023,-866.44,0.00024657,2]
[336890052,1725234648032,-500.0,0.00024657,2]
[336890053,1725234648042,-500.0,0.00024657,2]
[336890054,1725234648051,-500.0,0.00024657,2]
[336890055,1725234648062,-1746.75,0.00024657,2]
[336890056,1725234648071,-691.6,0.00024657,2]
[336890057,1725234648082,-500.0,0.00024657,2]
[336890058,1725234648091,-1410.55,0.00024657,2]
[336890059,1725234648100,-500.0,0.00024657,2]
[336890060,1725234648109,-1497.21,0.00024657,2]
[336890061,1725234648119,-729.96,0.00024657,2]
[336890062,1725234648128,-500.0,0.00024657,2]
[336890063,1725234648137,-2008.27,0.00024657,2]
[336890064,1725234648146,-500.0,0.00024657,2]
[336890065,1725234648155,-500.0,0.00024657,2]
[336890066,1725234648165,-1749.84,0.00024657,2]
[336890067,1725234648175,-500.0,0.00024657,2]
[336890068,1725234648185,-500.0,0.00024657,2]
[336890069,1725234648195,-803.27,0.00024657,2]
[336890070,1725234648208,-1660.01,0.00024657,2]
[336890071,1725234648217,-500.0,0.00024657,2]
[336890072,1725234648227,-500.0,0.00024657,2]
[336890073,1725234648237,-200.0,0.00024657,2]
[336890074,1725234648249,-500.0,0.00024657,2]
[336890075,1725234648259,-500.0,0.00024657,2]
[336890076,1725234648269,-272.73879747,0.00024657,2]
[336890077,1725234648279,-756.85,0.00024657,2]
[336890078,1725234648289,-500.0,0.00024657,2]
[336890079,1725234648300,-500.0,0.00024657,2]
[336890080,1725234648310,-500.0,0.00024657,2]
[336890081,1725234648320,-500.0,0.00024657,2]
[336890082,1725234648330,-284.10395751,0.00024657,2]
[336890083,1725234648339,-416.09270288,0.00024657,2]
[336890084,1725234648350,-500.0,0.00024657,2]
[336890085,1725234648360,-1963.27,0.00024657,2]
[336890086,1725234648370,-1162.2,0.00024657,2]
[336890087,1725234648380,-1343.35,0.00024657,2]
[336890088,1725234648390,-3356.77,0.00024657,2]
[336890089,1725234648399,-815.2,0.00024657,2]
[336890090,1725234648410,-500.0,0.00024657,2]
[336890091,1725234648420,-500.0,0.00024657,2]
[336890092,1725234648429,-500.0,0.00024657,2]
[336890093,1725234648439,-500.0,0.00024657,2]
[336890094,1725234648450,-1291.81,0.00024657,2]
[336890095,1725234648461,-500.0,0.00024657,2]
[336890096,1725234648471,-1593.53,0.00024657,2]
[336890097,1725234648481,-503.63402825,0.00024657,2]
[336890098,1725234648491,-2345.51,0.00024657,2]
[336890099,1725234648501,-2203.75,0.00024657,2]
[336890100,1725234648510,-500.0,0.00024657,2]
[336890101,1725234648521,-500.0,0.00024657,2]
[336890102,1725234648530,-380.0,0.00024658,2]
[336890103,1725234648541,-200.0,0.00024658,15]
[336890104,1725234648552,-500.0,0.00024673,2]
[336890105,1725234648562,-3960.48637415,0.00024684,2]
[336890106,1725234648572,-477.33044166,0.00024694,2]
[336890107,1725234648582,-415.886254,0.000247,2]
[336890108,1725234648592,-153.0,0.000247,2]
[336890109,1725234648602,-153.0,0.000247,2]
[336890110,1725234648612,-153.0,0.000247,2]
[336890111,1725234648622,-153.0,0.000247,2]
[336890112,1725234648632,-409.6979826,0.000247,2]
[336890113,1725234648642,-477.33044166,0.00024763,2]
[336890114,1725234648652,-150.112233,0.000248,2]
[336890115,1725234648662,-306.0,0.000248,2]
[336890116,1725234648671,-153.02792783,0.00024831,7]
[336890117,1725234648681,-153.52,0.00024831,7]
[336890118,1725234648691,-153.21542783,0.00024831,7]
[336890119,1725234648710,-153.21542783,0.00024831,7]
[336890120,1725234648720,-153.21542783,0.00024831,7]
[336890121,1725234648866,-153.21542783,0.00024831,7]
[336890122,1725234648876,-153.21542783,0.00024831,7]
[336890123,1725234648886,-153.21542783,0.00024831,7]
[336890124,1725234648896,-153.21542783,0.00024831,7]
[336890125,1725234648905,-153.99529182,0.00024831,7]
[336890126,1725234648915,-154.49,0.00024831,7]
[336890127,1725234648924,-154.18279182,0.00024831,7]
[336890128,1725234648934,-154.18279182,0.00024831,7]
[336890129,1725234648945,-154.18279182,0.00024831,7]
[336890130,1725234648955,-154.18279182,0.00024831,7]
[336890131,1725234648964,-154.18279182,0.00024831,7]
[336890132,1725234648974,-154.18279182,0.00024831,7]
[336890133,1725234648984,-154.18279182,0.00024831,7]
[336890134,1725234648994,-477.33044166,0.00024831,2]
[336890135,1725234649005,-1811.88466896,0.00024831,2]
[336890136,1725234649015,-153.0,0.00024849,2]
[336890137,1725234649025,-153.0,0.00024849,2]
[336890138,1725234649036,-150.112233,0.000249,5]
[336890139,1725234649046,-150.112233,0.000249,3]
[336890140,1725234649056,-209.4109938,0.00024904,2]
[336890141,1725234649065,-39979.0364745,0.00024921,3]
[336890142,1725234649075,-500.0,0.0002493,2]
[336890143,1725234649086,-3804.23,0.0002493,2]
[336890144,1725234649096,-3804.23,0.0002493,2]
[336890145,1725234649106,-3804.23,0.0002493,2]
[336890146,1725234649116,-3804.23,0.0002493,2]
[336890147,1725234649126,-3804.23,0.0002493,2]
[336890148,1725234649136,-3804.23,0.0002493,2]
[336890149,1725234649145,-500.0,0.0002493,2]
[336890150,1725234649155,-500.0,0.0002493,2]
[336890151,1725234649166,-500.0,0.0002493,2]
[336890152,1725234649175,-500.0,0.0002493,2]
[336890153,1725234649186,-500.0,0.0002493,2]
[336890154,1725234649197,-500.0,0.0002493,2]
[336890155,1725234649210,-500.0,0.0002493,2]
[336890156,1725234649220,-500.0,0.0002493,2]
[336890157,1725234649231,-500.0,0.0002493,2]
[336890158,1725234649242,-500.0,0.0002493,2]
[336890159,1725234649253,-500.0,0.0002493,2]
[336890160,1725234649263,-500.0,0.0002493,2]
[336890161,1725234649272,-500.0,0.00024931,2]
[336890162,1725234649285,-194.44568111,0.00024931,2]
[336890163,1725234649296,-500.0,0.00024931,2]
[336890164,1725234649305,-500.0,0.00024931,2]
[336890165,1725234649315,-508.84601125,0.00024931,2]
[336890166,1725234649325,-503.44362046,0.00024931,2]
[336890167,1725234649334,-500.0,0.00024931,2]
[336890168,1725234649344,-500.0,0.00024931,2]
[336890169,1725234649354,-500.0,0.00024931,2]
[336890170,1725234649363,-500.0,0.00024931,2]
[336890171,1725234649374,-502.17971917,0.00024931,2]
[336890172,1725234649383,-500.0,0.00024931,2]
[336890173,1725234649394,-500.0,0.00024931,2]
[336890174,1725234649404,-1408.38,0.00024931,2]
[336890175,1725234649414,-500.0,0.00024931,2]
[336890176,1725234649424,-500.0,0.00024931,2]
[336890177,1725234649434,-500.0,0.00024931,2]
[336890178,1725234649445,-500.0,0.00024931,2]
[336890179,1725234649454,-500.0,0.00024931,2]
[336890180,1725234649464,-500.0,0.00024931,2]
[336890181,1725234649474,-500.0,0.00024931,2]
[336890182,1725234649483,-500.0,0.00024931,2]
[336890183,1725234649493,-500.0,0.00024931,2]
[336890184,1725234649503,-500.0,0.00024931,2]
[336890185,1725234649513,-530.90616032,0.00024931,2]
[336890186,1725234649523,-584.28633893,0.00024931,2]
[336890187,1725234649532,-500.0,0.00024931,2]
[336890188,1725234649543,-500.0,0.00024931,2]
[336890189,1725234649554,-502.85223242,0.00024931,2]
[336890190,1725234649564,-500.0,0.00024931,2]
[336890191,1725234649574,-500.0,0.00024931,2]
[336890192,1725234649584,-500.0,0.00024931,2]
[336890193,1725234649593,-500.0,0.00024931,2]
[336890194,1725234649603,-500.0,0.00024931,2]
[336890195,1725234649612,-500.0,0.00024931,2]
[336890196,1725234649622,-500.0,0.00024931,2]
[336890197,1725234649632,-500.0,0.00024931,2]
[336890198,1725234649642,-500.0,0.00024931,2]
[336890199,1725234649653,-634.0,0.00024931,2]
[336890200,1725234649662,-500.0,0.00024931,2]
[336890201,1725234649672,-500.0,0.00024931,2]
[336890202,1725234649683,-500.0,0.00024931,2]
[336890203,1725234649693,-500.0,0.00024931,2]
[336890204,1725234649703,-500.0,0.00024931,2]
[336890205,1725234649714,-500.0,0.00024931,2]
[336890206,1725234649723,-500.0,0.00024931,2]
[336890207,1725234649734,-502.33887815,0.00024931,2]
[336890208,1725234649744,-500.0,0.00024931,2]
[336890209,1725234649754,-500.69716664,0.00024931,2]
[336890210,1725234649764,-908.72,0.00024931,2]
[336890211,1725234649774,-500.0,0.00024931,2]
[336890212,1725234649784,-500.0,0.00024931,2]
[336890213,1725234649794,-500.0,0.00024931,2]
[336890214,1725234649802,-500.0,0.00024931,2]
[336890215,1725234649812,-500.0,0.00024931,2]
[336890216,1725234649821,-500.0,0.00024931,2]
[336890217,1725234649831,-500.0,0.00024931,2]
[336890218,1725234649841,-500.0,0.00024931,2]
[336890219,1725234649850,-500.0,0.00024931,2]
[336890220,1725234649860,-500.0,0.00024931,2]
[336890221,1725234649869,-500.0,0.00024931,2]
[336890222,1725234649878,-500.0,0.00024931,2]
[336890223,1725234649888,-701.5,0.00024931,2]
[336890224,1725234649898,-500.0,0.00024931,2]
[336890225,1725234649908,-456.10523102,0.00024931,2]
[336890226,1725234649918,-500.0,0.00024931,2]
[336890227,1725234649928,-500.0,0.00024931,2]
[336890228,1725234649938,-500.0,0.00024931,2]
[336890229,1725234649950,-502.73205741,0.00024931,2]
[336890230,1725234649960,-500.0,0.00024931,2]
[336890231,1725234649970,-500.0,0.00024931,2]
[336890232,1725234649980,-500.0,0.00024931,2]
[336890233,1725234649990,-500.0,0.00024931,2]
[336890234,1725234650000,-500.0,0.00024931,2]
[336890235,1725234650010,-500.0,0.00024931,2]
[336890236,1725234650020,-500.0,0.00024931,2]
[336890237,1725234650029,-500.0,0.00024931,2]
[336890238,1725234650039,-500.0,0.00024931,2]
[336890239,1725234650048,-500.0,0.00024931,2]
[336890240,1725234650057,-500.0,0.00024931,2]
[336890241,1725234650067,-500.0,0.00024931,2]
[336890242,1725234650077,-500.0,0.00024931,2]
[336890243,1725234650087,-500.0,0.00024931,2]
[336890244,1725234650096,-294.91349024,0.00024931,2]
[336890245,1725234650106,-269.24649168,0.00024931,2]
[336890246,1725234650116,-500.96254311,0.00024931,2]
[336890247,1725234650125,-500.0,0.00024931,2]
[336890248,1725234650134,-500.0,0.00024931,4]
[336890249,1725234650153,-500.0,0.00024931,2]
[336890250,1725234650166,-673.67,0.00024931,2]
[336890251,1725234650175,-426.32808891,0.00024931,2]
[336890252,1725234650185,-500.0,0.00024931,2]
[336890253,1725234650199,-500.0,0.00024931,2]
[336890254,1725234650212,-500.0,0.00024931,2]
[336890255,1725234650222,-500.0,0.00024931,2]
[336890256,1725234650231,-500.0,0.00024931,2]
[336890257,1725234650241,-500.0,0.00024931,2]
[336890258,1725234650250,-500.0,0.00024931,2]
[336890259,1725234650260,-603.48,0.00024931,2]
[336890260,1725234650269,-500.0,0.00024931,2]
[336890261,1725234650279,-500.0,0.00024931,2]
[336890262,1725234650289,-500.0,0.00024931,2]
[336890263,1725234650300,-500.0,0.00024931,2]
[336890264,1725234650310,-500.0,0.00024931,2]
[336890265,1725234650320,-500.0,0.00024931,2]
[336890266,1725234650330,-698.77,0.00024931,2]
[336890267,1725234650341,-290.40627938,0.00024931,2]
[336890268,1725234650351,-500.0,0.00024931,2]
[336890269,1725234650361,-1196.39,0.00024931,2]
[336890270,1725234650371,-500.0,0.00024931,2]
[336890271,1725234650381,-500.0,0.00024931,2]
[336890272,1725234650391,-500.0,0.00024931,2]
[336890273,1725234650400,-507.51553229,0.00024931,2]
[336890274,1725234650409,-500.0,0.00024931,2]
[336890275,1725234650419,-500.0,0.00024931,2]
[336890276,1725234650429,-500.0,0.00024931,2]
[336890277,1725234650440,-1484.8,0.00024931,2]
[336890278,1725234650452,-500.0,0.00024931,2]
[336890279,1725234650462,-500.0,0.00024931,2]
[336890280,1725234650471,-500.0,0.00024931,2]
[336890281,1725234650481,-501.97,0.00024931,2]
[336890282,1725234650491,-500.0,0.00024931,2]
[336890283,1725234650501,-500.0,0.00024931,2]
[336890284,1725234650512,-500.0,0.00024931,2]
[336890285,1725234650522,-500.0,0.00024931,2]
[336890286,1725234650532,-500.0,0.00024931,2]
[336890287,1725234650542,-500.0,0.00024931,2]
[336890288,1725234650552,-500.0,0.00024931,2]
[336890289,1725234650562,-500.0,0.00024931,2]
[336890290,1725234650572,-500.0,0.00024931,2]
[336890291,1725234650583,-500.0,0.00024931,2]
[336890292,1725234650594,-500.0,0.00024931,2]
[336890293,1725234650604,-500.0,0.00024931,2]
[336890294,1725234650614,-500.0,0.00024931,2]
[336890295,1725234650624,-756.11,0.00024931,2]
[336890296,1725234650635,-500.0,0.00024931,2]
[336890297,1725234650645,-500.0,0.00024931,2]
[336890298,1725234650655,-154.83952908,0.00024931,2]
[336890299,1725234650665,-500.0,0.00024931,2]
[336890300,1725234650675,-500.0,0.00024931,2]
[336890301,1725234650686,-500.0,0.00024931,2]
[336890302,1725234650698,-500.0,0.00024931,2]
[336890303,1725234650708,-500.0,0.00024931,2]
[336890304,1725234650718,-500.0,0.00024931,2]
[336890305,1725234650728,-500.0,0.00024931,2]
[336890306,1725234650739,-987.25,0.00024931,2]
[336890307,1725234650749,-503.24694525,0.00024931,2]
[336890308,1725234650759,-830.53,0.00024931,2]
[336890309,1725234650773,-503.75109237,0.00024931,2]
[336890310,1725234650784,-500.0,0.00024931,2]
[336890311,1725234650794,-500.0,0.00024931,2]
[336890312,1725234650805,-500.0,0.00024931,2]
[336890313,1725234650815,-500.0,0.00024931,2]
[336890314,1725234650825,-500.0,0.00024931,2]
[336890315,1725234650835,-500.0,0.00024931,2]
[336890316,1725234650844,-1099.58,0.00024931,2]
[336890317,1725234650854,-572.15,0.00024931,2]
[336890318,1725234650864,-500.0,0.00024931,2]
[336890319,1725234650875,-484.00240528,0.00024931,2]
[336890320,1725234650885,-500.0,0.00024931,2]
[336890321,1725234650895,-500.0,0.00024931,2]
[336890322,1725234650905,-500.0,0.00024931,2]
[336890323,1725234650915,-500.0,0.00024931,2]
[336890324,1725234650925,-500.0,0.00024931,2]
[336890325,1725234650935,-500.0,0.00024931,2]
[336890326,1725234650947,-500.0,0.00024931,2]
[336890327,1725234650957,-500.0,0.00024931,2]
[336890328,1725234650966,-500.0,0.00024931,2]
[336890329,1725234650976,-500.0,0.00024931,2]
[336890330,1725234650986,-500.0,0.00024931,2]
[336890331,1725234650996,-500.0,0.00024931,2]
[336890332,1725234651006,-500.0,0.00024931,2]
[336890333,1725234651016,-500.0,0.00024931,2]
[336890334,1725234651026,-500.0,0.00024931,2]
[336890335,1725234651037,-500.0,0.00024931,2]
[336890336,1725234651046,-500.0,0.00024931,2]
[336890337,1725234651056,-500.0,0.00024931,2]
[336890338,1725234651066,-500.0,0.00024931,2]
[336890339,1725234651076,-503.0032315,0.00024931,2]
[336890340,1725234651086,-500.0,0.00024931,2]
[336890341,1725234651096,-500.0,0.00024931,2]
[336890342,1725234651106,-505.29352395,0.00024931,2]
[336890343,1725234651115,-500.0,0.00024931,2]
[336890344,1725234651125,-500.0,0.00024931,2]
[336890345,1725234651134,-500.0,0.00024931,2]
[336890346,1725234651144,-472.47114977,0.00024931,2]
[336890347,1725234651154,-500.0,0.00024931,2]
[336890348,1725234651164,-500.0,0.00024931,2]
[336890349,1725234651173,-521.36,0.00024931,2]
[336890350,1725234651183,-500.0,0.00024931,2]
[336890351,1725234651193,-500.0,0.00024931,2]
[336890352,1725234651205,-500.0,0.00024931,2]